[Event "Titled Tuesday Blitz June 21 Late 2022"]
[White "Khismatullin, Denis"]
[Black "So, Wesley"]
[WhiteFideId "4142578"]
[BlackFideId "5202213"]
[WhiteElo "2543"]
[BlackElo "2742"]
[Result "0-1"]
[Round "07"]
[TimeControl "180+1"]
[Date "2022.06.21"]
[WhiteClock "0:00:20"]
[BlackClock "0:00:15"]

1. Nf3 {[%clk 0:02:55]}  d5 {[%clk 0:02:56]} 2. e3 {[%clk 0:02:51]}  Nf6 {[%clk 0:02:56]} 3. c4 {[%clk 0:02:51]}  e6 {[%clk 0:02:55]} 4. b3 {[%clk 0:02:52]}  Be7 {[%clk 0:02:53]} 5. Bb2 {[%clk 0:02:52]}  O-O {[%clk 0:02:54]} 6. Nc3 {[%clk 0:02:52]}  c5 {[%clk 0:02:55]} 7. cxd5 {[%clk 0:02:52]}  Nxd5 {[%clk 0:02:56]} 8. Qb1 {[%clk 0:02:51]}  b6 {[%clk 0:02:46]} 9. h4 {[%clk 0:02:38]}  f5 {[%clk 0:02:33]} 10. Nxd5 {[%clk 0:02:35]}  exd5 {[%clk 0:02:34]} 11. d4 {[%clk 0:02:34]}  Be6 {[%clk 0:02:30]} 12. g3 {[%clk 0:02:22]}  c4 {[%clk 0:02:20]} 13. Bg2 {[%clk 0:02:12]}  Bb4+ {[%clk 0:02:18]} 14. Kf1 {[%clk 0:02:11]}  c3 {[%clk 0:02:11]} 15. Bc1 {[%clk 0:02:04]}  Nd7 {[%clk 0:02:10]} 16. Ng5 {[%clk 0:01:50]}  Qe7 {[%clk 0:02:09]} 17. Qd3 {[%clk 0:01:48]}  Nf6 {[%clk 0:02:08]} 18. a3 {[%clk 0:01:47]}  Bd6 {[%clk 0:02:08]} 19. Nxe6 {[%clk 0:01:46]}  Qxe6 {[%clk 0:02:09]} 20. Qxc3 {[%clk 0:01:46]}  Ne4 {[%clk 0:02:07]} 21. Qd3 {[%clk 0:01:46]}  Rac8 {[%clk 0:01:54]} 22. Bd2 {[%clk 0:01:27]}  Rc6 {[%clk 0:01:44]} 23. Bf3 {[%clk 0:01:26]}  Rfc8 {[%clk 0:01:43]} 24. Bd1 {[%clk 0:01:21]}  Bxg3 {[%clk 0:01:23]} 25. fxg3 {[%clk 0:01:22]}  Nxg3+ {[%clk 0:01:24]} 26. Kg2 {[%clk 0:01:22]}  Nxh1 {[%clk 0:01:02]} 27. Kxh1 {[%clk 0:01:12]}  f4 {[%clk 0:00:51]} 28. exf4 {[%clk 0:01:08]}  Qf6 {[%clk 0:00:51]} 29. Be1 {[%clk 0:00:59]}  Qxf4 {[%clk 0:00:48]} 30. Bg3 {[%clk 0:00:56]}  Qf6 {[%clk 0:00:44]} 31. Bf3 {[%clk 0:00:54]}  Rc3 {[%clk 0:00:42]} 32. Bxd5+ {[%clk 0:00:36]}  Kh8 {[%clk 0:00:42]} 33. Qa6 {[%clk 0:00:35]}  Qxd4 {[%clk 0:00:29]} 34. Bg2 {[%clk 0:00:31]}  Re8 {[%clk 0:00:19]} 35. Bh2 {[%clk 0:00:30]}  Rc2 {[%clk 0:00:16]} 36. Rg1 {[%clk 0:00:28]}  Qxh4 {[%clk 0:00:13]} 37. Qxa7 {[%clk 0:00:25]}  Rxg2 {[%clk 0:00:13]} 38. Kxg2 {[%clk 0:00:22]}  Re2+ {[%clk 0:00:13]} 39. Kf3 {[%clk 0:00:20]}  Qe4+ {[%clk 0:00:13]} 40. Kg3 {[%clk 0:00:21]}  Re3+ {[%clk 0:00:14]} 41. Kf2 {[%clk 0:00:20]}  Qf3# {[%clk 0:00:15]} 0-1


[Site "https://www.chess.com"]

[Event "Titled Tuesday Blitz June 21 Late 2022"]
[White "Koziorowicz, Michal"]
[Black "Indjic, Aleksandar"]
[WhiteFideId "21809194"]
[BlackFideId "911925"]
[WhiteElo "2202"]
[BlackElo "2616"]
[Result "1-0"]
[Round "07"]
[TimeControl "180+1"]
[Date "2022.06.21"]
[WhiteClock "0:00:22"]
[BlackClock "0:00:06"]

1. e4 {[%clk 0:03:00]}  c5 {[%clk 0:02:57]} 2. Nf3 {[%clk 0:02:53]}  e6 {[%clk 0:02:56]} 3. g3 {[%clk 0:02:53]}  Nc6 {[%clk 0:02:53]} 4. Bg2 {[%clk 0:02:53]}  Nf6 {[%clk 0:02:54]} 5. Nc3 {[%clk 0:02:53]}  d5 {[%clk 0:02:53]} 6. exd5 {[%clk 0:02:53]}  exd5 {[%clk 0:02:50]} 7. d4 {[%clk 0:02:53]}  cxd4 {[%clk 0:02:44]} 8. Nxd4 {[%clk 0:02:54]}  Bg4 {[%clk 0:02:44]} 9. f3 {[%clk 0:02:46]}  Bd7 {[%clk 0:02:32]} 10. O-O {[%clk 0:02:44]}  Bc5 {[%clk 0:02:31]} 11. Re1+ {[%clk 0:02:43]}  Be6 {[%clk 0:02:30]} 12. Be3 {[%clk 0:02:43]}  Nxd4 {[%clk 0:02:25]} 13. Bxd4 {[%clk 0:02:44]}  Qb6 {[%clk 0:02:24]} 14. Bxc5 {[%clk 0:02:38]}  Qxc5+ {[%clk 0:02:25]} 15. Kh1 {[%clk 0:02:39]}  O-O {[%clk 0:02:24]} 16. Ne2 {[%clk 0:02:35]}  Rfe8 {[%clk 0:02:09]} 17. Nd4 {[%clk 0:02:29]}  Bd7 {[%clk 0:02:08]} 18. c3 {[%clk 0:02:28]}  h5 {[%clk 0:01:47]} 19. Qd2 {[%clk 0:02:25]}  h4 {[%clk 0:01:47]} 20. Rxe8+ {[%clk 0:02:12]}  Rxe8 {[%clk 0:01:45]} 21. Re1 {[%clk 0:02:13]}  h3 {[%clk 0:01:28]} 22. Bf1 {[%clk 0:02:12]}  Rxe1 {[%clk 0:00:54]} 23. Qxe1 {[%clk 0:02:13]}  Qb6 {[%clk 0:00:54]} 24. Qd2 {[%clk 0:02:08]}  Qc7 {[%clk 0:00:49]} 25. g4 {[%clk 0:01:59]}  Qe5 {[%clk 0:00:47]} 26. Bxh3 {[%clk 0:01:59]}  g5 {[%clk 0:00:48]} 27. Bg2 {[%clk 0:01:54]}  Nh7 {[%clk 0:00:47]} 28. Ne2 {[%clk 0:01:36]}  Nf8 {[%clk 0:00:43]} 29. f4 {[%clk 0:01:35]}  gxf4 {[%clk 0:00:42]} 30. Nxf4 {[%clk 0:01:36]}  Bxg4 {[%clk 0:00:42]} 31. Nxd5 {[%clk 0:01:35]}  Ng6 {[%clk 0:00:41]} 32. h3 {[%clk 0:01:32]}  Be6 {[%clk 0:00:39]} 33. Ne3 {[%clk 0:01:22]}  Nf4 {[%clk 0:00:36]} 34. Qd8+ {[%clk 0:01:02]}  Kg7 {[%clk 0:00:34]} 35. Qd4 {[%clk 0:01:02]}  Qxd4 {[%clk 0:00:28]} 36. cxd4 {[%clk 0:01:03]}  Nxg2 {[%clk 0:00:28]} 37. Kxg2 {[%clk 0:01:03]}  Bxa2 {[%clk 0:00:28]} 38. Kg3 {[%clk 0:01:02]}  b5 {[%clk 0:00:24]} 39. Kf4 {[%clk 0:00:59]}  f6 {[%clk 0:00:21]} 40. d5 {[%clk 0:00:54]}  a5 {[%clk 0:00:20]} 41. Ke4 {[%clk 0:00:55]}  Kg6 {[%clk 0:00:18]} 42. Kd4 {[%clk 0:00:53]}  b4 {[%clk 0:00:17]} 43. Kc5 {[%clk 0:00:49]}  f5 {[%clk 0:00:17]} 44. d6 {[%clk 0:00:44]}  Be6 {[%clk 0:00:16]} 45. Ng2 {[%clk 0:00:39]}  Kg5 {[%clk 0:00:16]} 46. Kb5 {[%clk 0:00:38]}  f4 {[%clk 0:00:14]} 47. h4+ {[%clk 0:00:30]}  Kg4 {[%clk 0:00:14]} 48. Nxf4 {[%clk 0:00:28]}  Kxf4 {[%clk 0:00:15]} 49. Kxa5 {[%clk 0:00:27]}  b3 {[%clk 0:00:14]} 50. Kb6 {[%clk 0:00:20]}  Kg4 {[%clk 0:00:05]} 51. Kc6 {[%clk 0:00:19]}  Kxh4 {[%clk 0:00:05]} 52. d7 {[%clk 0:00:19]}  Bxd7+ {[%clk 0:00:06]} 53. Kxd7 {[%clk 0:00:20]}  Kg4 {[%clk 0:00:05]} 54. Kd6 {[%clk 0:00:21]}  Kf5 {[%clk 0:00:04]} 55. Kd5 {[%clk 0:00:21]}  Kf4 {[%clk 0:00:02]} 56. Kc4 {[%clk 0:00:21]}  Ke5 {[%clk 0:00:02]} 57. Kxb3 {[%clk 0:00:22]}  Kd6 {[%clk 0:00:03]} 58. Kb4 {[%clk 0:00:22]}  Kc7 {[%clk 0:00:03]} 59. Kb5 {[%clk 0:00:22]}  Kb7 {[%clk 0:00:04]} 60. b4 {[%clk 0:00:22]}  Kb8 {[%clk 0:00:04]} 61. Kb6 {[%clk 0:00:22]}  Ka8 {[%clk 0:00:04]} 62. b5 {[%clk 0:00:20]}  Kb8 {[%clk 0:00:05]} 63. Ka6 {[%clk 0:00:20]}  Ka8 {[%clk 0:00:05]} 64. b6 {[%clk 0:00:21]}  Kb8 {[%clk 0:00:06]} 65. b7 {[%clk 0:00:22]} 1-0


[Site "https://www.chess.com"]

[Event "Titled Tuesday Blitz June 21 Late 2022"]
[White "Leiva, Gianmarco"]
[Black "Dobre, Claudiu-Cristian"]
[WhiteFideId "3804399"]
[BlackFideId "1211854"]
[WhiteElo "2323"]
[BlackElo "2207"]
[Result "1-0"]
[Round "07"]
[TimeControl "180+1"]
[Date "2022.06.21"]
[WhiteClock "0:00:04"]
[BlackClock "0:00:04"]

1. e4 {[%clk 0:03:00]}  Nc6 {[%clk 0:03:00]} 2. d4 {[%clk 0:02:57]}  d5 {[%clk 0:02:59]} 3. e5 {[%clk 0:02:55]}  Bf5 {[%clk 0:02:59]} 4. c3 {[%clk 0:02:50]}  e6 {[%clk 0:02:59]} 5. Nf3 {[%clk 0:02:50]}  h6 {[%clk 0:02:58]} 6. Be3 {[%clk 0:02:44]}  Nge7 {[%clk 0:02:54]} 7. Nbd2 {[%clk 0:02:35]}  g5 {[%clk 0:02:50]} 8. a4 {[%clk 0:02:25]}  Ng6 {[%clk 0:02:36]} 9. a5 {[%clk 0:02:21]}  a6 {[%clk 0:02:36]} 10. b4 {[%clk 0:02:15]}  Na7 {[%clk 0:02:16]} 11. Nb3 {[%clk 0:02:03]}  Nb5 {[%clk 0:02:10]} 12. Qd2 {[%clk 0:01:53]}  Qd7 {[%clk 0:01:51]} 13. h4 {[%clk 0:01:45]}  g4 {[%clk 0:01:50]} 14. Ng1 {[%clk 0:01:45]}  h5 {[%clk 0:01:44]} 15. Ne2 {[%clk 0:01:43]}  b6 {[%clk 0:01:39]} 16. Ng3 {[%clk 0:01:42]}  Be7 {[%clk 0:01:37]} 17. Nxf5 {[%clk 0:01:36]}  exf5 {[%clk 0:01:36]} 18. g3 {[%clk 0:01:19]}  Qc6 {[%clk 0:01:35]} 19. Rc1 {[%clk 0:01:05]}  Na3 {[%clk 0:01:29]} 20. Bd3 {[%clk 0:01:01]}  Nc4 {[%clk 0:01:26]} 21. Qa2 {[%clk 0:00:57]}  Qe6 {[%clk 0:00:36]} 22. Nd2 {[%clk 0:00:57]}  b5 {[%clk 0:00:36]} 23. Qc2 {[%clk 0:00:48]}  Na3 {[%clk 0:00:34]} 24. Qa2 {[%clk 0:00:43]}  Nc4 {[%clk 0:00:34]} 25. Bf4 {[%clk 0:00:12]}  f6 {[%clk 0:00:23]} 26. Qb1 {[%clk 0:00:09]}  Na3 {[%clk 0:00:16]} 27. Bxf5 {[%clk 0:00:03]}  Nxb1 {[%clk 0:00:16]} 28. Bxe6 {[%clk 0:00:04]}  Nxd2 {[%clk 0:00:14]} 29. Kxd2 {[%clk 0:00:03]}  fxe5 {[%clk 0:00:14]} 30. Bxe5 {[%clk 0:00:02]}  Nxe5 {[%clk 0:00:13]} 31. dxe5 {[%clk 0:00:03]}  Rf8 {[%clk 0:00:12]} 32. Rhf1 {[%clk 0:00:02]}  c6 {[%clk 0:00:11]} 33. Ke2 {[%clk 0:00:02]}  Bd8 {[%clk 0:00:11]} 34. f4 {[%clk 0:00:03]}  gxf3+ {[%clk 0:00:10]} 35. Rxf3 {[%clk 0:00:03]}  Rxf3 {[%clk 0:00:10]} 36. Kxf3 {[%clk 0:00:04]}  Ke7 {[%clk 0:00:10]} 37. Bf5 {[%clk 0:00:05]}  Bc7 {[%clk 0:00:11]} 38. Re1 {[%clk 0:00:05]}  Rf8 {[%clk 0:00:11]} 39. g4 {[%clk 0:00:05]}  hxg4+ {[%clk 0:00:10]} 40. Kxg4 {[%clk 0:00:06]}  Rg8+ {[%clk 0:00:10]} 41. Kf3 {[%clk 0:00:05]}  Rh8 {[%clk 0:00:10]} 42. Kg4 {[%clk 0:00:04]}  Rg8+ {[%clk 0:00:10]} 43. Kf4 {[%clk 0:00:05]}  Rh8 {[%clk 0:00:10]} 44. Rh1 {[%clk 0:00:05]}  Kf7 {[%clk 0:00:08]} 45. h5 {[%clk 0:00:06]}  Kg7 {[%clk 0:00:07]} 46. Rg1+ {[%clk 0:00:05]}  Kf8 {[%clk 0:00:07]} 47. Rg6 {[%clk 0:00:03]}  Rxh5 {[%clk 0:00:07]} 48. Rxc6 {[%clk 0:00:04]}  Rh4+ {[%clk 0:00:07]} 49. Kg5 {[%clk 0:00:03]}  Bd8+ {[%clk 0:00:04]} 50. Kg6 {[%clk 0:00:03]}  Rc4 {[%clk 0:00:04]} 51. Rxc4 {[%clk 0:00:03]}  bxc4 {[%clk 0:00:03]} 52. Be6 {[%clk 0:00:02]}  d4 {[%clk 0:00:03]} 53. cxd4 {[%clk 0:00:03]}  c3 {[%clk 0:00:03]} 54. Bb3 {[%clk 0:00:03]}  Be7 {[%clk 0:00:03]} 55. b5 {[%clk 0:00:03]}  axb5 {[%clk 0:00:03]} 56. a6 {[%clk 0:00:04]}  Bd8 {[%clk 0:00:04]} 57. a7 {[%clk 0:00:04]} 1-0


[Site "https://www.chess.com"]

[Event "Titled Tuesday Blitz June 21 Late 2022"]
[White "Mei, Austin"]
[Black "Levine, Joseph"]
[WhiteFideId "30948479"]
[BlackFideId "30940346"]
[WhiteElo "1936"]
[BlackElo "1802"]
[Result "0-1"]
[Round "07"]
[TimeControl "180+1"]
[Date "2022.06.22"]
[WhiteClock "0:00:07"]
[BlackClock "0:00:18"]

1. e4 {[%clk 0:03:00]}  e6 {[%clk 0:03:00]} 2. d3 {[%clk 0:03:00]}  d5 {[%clk 0:02:59]} 3. Nd2 {[%clk 0:03:01]}  Nf6 {[%clk 0:02:59]} 4. Ngf3 {[%clk 0:03:00]}  c5 {[%clk 0:02:59]} 5. g3 {[%clk 0:03:01]}  Nc6 {[%clk 0:03:00]} 6. Bg2 {[%clk 0:03:01]}  Be7 {[%clk 0:03:00]} 7. O-O {[%clk 0:03:02]}  Qc7 {[%clk 0:03:00]} 8. Re1 {[%clk 0:03:01]}  h6 {[%clk 0:02:58]} 9. a3 {[%clk 0:02:58]}  b6 {[%clk 0:02:59]} 10. c3 {[%clk 0:02:55]}  O-O {[%clk 0:02:49]} 11. b4 {[%clk 0:02:53]}  Ba6 {[%clk 0:02:48]} 12. Nb3 {[%clk 0:02:46]}  c4 {[%clk 0:02:43]} 13. dxc4 {[%clk 0:02:43]}  Bxc4 {[%clk 0:02:41]} 14. Nbd2 {[%clk 0:02:33]}  Ba6 {[%clk 0:02:29]} 15. Bb2 {[%clk 0:02:27]}  Rad8 {[%clk 0:02:08]} 16. exd5 {[%clk 0:02:17]}  Rxd5 {[%clk 0:01:56]} 17. Nd4 {[%clk 0:01:51]}  Nxd4 {[%clk 0:01:39]} 18. Bxd5 {[%clk 0:01:51]}  Ne2+ {[%clk 0:01:35]} 19. Rxe2 {[%clk 0:01:51]}  Bxe2 {[%clk 0:01:35]} 20. Qxe2 {[%clk 0:01:51]}  Nxd5 {[%clk 0:01:35]} 21. c4 {[%clk 0:01:51]}  Bf6 {[%clk 0:01:08]} 22. Bxf6 {[%clk 0:01:47]}  Nxf6 {[%clk 0:01:09]} 23. Rc1 {[%clk 0:01:24]}  Rc8 {[%clk 0:00:58]} 24. c5 {[%clk 0:01:23]}  bxc5 {[%clk 0:00:48]} 25. Rxc5 {[%clk 0:01:23]}  Qd8 {[%clk 0:00:46]} 26. Rxc8 {[%clk 0:01:21]}  Qxc8 {[%clk 0:00:47]} 27. Qc4 {[%clk 0:01:16]}  Qd7 {[%clk 0:00:45]} 28. Ne4 {[%clk 0:00:55]}  Qd1+ {[%clk 0:00:36]} 29. Kg2 {[%clk 0:00:55]}  Nd5 {[%clk 0:00:34]} 30. Qc8+ {[%clk 0:00:43]}  Kh7 {[%clk 0:00:33]} 31. Qf8 {[%clk 0:00:40]}  Qe2 {[%clk 0:00:23]} 32. Qxf7 {[%clk 0:00:11]}  Ne3+ {[%clk 0:00:19]} 33. Kh3 {[%clk 0:00:07]}  Qg4# {[%clk 0:00:18]} 0-1


[Site "https://www.chess.com"]

[Event "Titled Tuesday Blitz June 21 Late 2022"]
[White "Mikhailov, Viacheslav"]
[Black "Mickiewicz, Piotr"]
[WhiteFideId "4187369"]
[BlackFideId "1114891"]
[WhiteElo "2381"]
[BlackElo "2209"]
[Result "1-0"]
[Round "07"]
[TimeControl "180+1"]
[Date "2022.06.21"]
[WhiteClock "0:00:01"]
[BlackClock "0:00:05"]

1. Nf3 {[%clk 0:02:59]}  Nf6 {[%clk 0:02:57]} 2. g3 {[%clk 0:02:59]}  g6 {[%clk 0:02:57]} 3. Bg2 {[%clk 0:02:59]}  Bg7 {[%clk 0:02:57]} 4. O-O {[%clk 0:03:00]}  O-O {[%clk 0:02:57]} 5. c4 {[%clk 0:03:01]}  d6 {[%clk 0:02:56]} 6. Nc3 {[%clk 0:03:01]}  e5 {[%clk 0:02:55]} 7. d3 {[%clk 0:03:01]}  c6 {[%clk 0:02:54]} 8. Bg5 {[%clk 0:03:02]}  h6 {[%clk 0:02:52]} 9. Bxf6 {[%clk 0:03:02]}  Bxf6 {[%clk 0:02:52]} 10. Rc1 {[%clk 0:03:03]}  Be6 {[%clk 0:02:48]} 11. b4 {[%clk 0:03:03]}  Nd7 {[%clk 0:02:45]} 12. b5 {[%clk 0:03:03]}  d5 {[%clk 0:02:43]} 13. Nd2 {[%clk 0:03:00]}  Nb6 {[%clk 0:02:33]} 14. bxc6 {[%clk 0:02:58]}  bxc6 {[%clk 0:02:33]} 15. cxd5 {[%clk 0:02:51]}  cxd5 {[%clk 0:02:32]} 16. Nb3 {[%clk 0:02:51]}  Rc8 {[%clk 0:02:27]} 17. Qd2 {[%clk 0:02:36]}  Kg7 {[%clk 0:02:13]} 18. Nb5 {[%clk 0:02:35]}  Qe7 {[%clk 0:02:11]} 19. Qa5 {[%clk 0:02:33]}  Bg5 {[%clk 0:01:25]} 20. e3 {[%clk 0:02:20]}  d4 {[%clk 0:01:24]} 21. Rxc8 {[%clk 0:02:09]}  Nxc8 {[%clk 0:01:13]} 22. exd4 {[%clk 0:02:09]}  Bxb3 {[%clk 0:00:53]} 23. axb3 {[%clk 0:02:09]}  exd4 {[%clk 0:00:39]} 24. Nxd4 {[%clk 0:02:10]}  Bf6 {[%clk 0:00:38]} 25. Nc6 {[%clk 0:02:07]}  Qd6 {[%clk 0:00:36]} 26. Nxa7 {[%clk 0:01:45]}  Nxa7 {[%clk 0:00:35]} 27. Qxa7 {[%clk 0:01:46]}  Qxd3 {[%clk 0:00:35]} 28. b4 {[%clk 0:01:46]}  Bd4 {[%clk 0:00:31]} 29. Qb7 {[%clk 0:01:46]}  Qd2 {[%clk 0:00:28]} 30. b5 {[%clk 0:01:43]}  Qb2 {[%clk 0:00:23]} 31. Bd5 {[%clk 0:01:41]}  h5 {[%clk 0:00:23]} 32. h4 {[%clk 0:01:41]}  Qc3 {[%clk 0:00:13]} 33. Kg2 {[%clk 0:01:40]}  Qc5 {[%clk 0:00:13]} 34. Qc6 {[%clk 0:01:37]}  Qb6 {[%clk 0:00:09]} 35. Qxb6 {[%clk 0:01:36]}  Bxb6 {[%clk 0:00:10]} 36. Rc1 {[%clk 0:01:35]}  Rd8 {[%clk 0:00:10]} 37. Rd1 {[%clk 0:01:13]}  Rd6 {[%clk 0:00:08]} 38. f3 {[%clk 0:01:12]}  f6 {[%clk 0:00:08]} 39. g4 {[%clk 0:01:12]}  g5 {[%clk 0:00:08]} 40. gxh5 {[%clk 0:01:09]}  gxh4 {[%clk 0:00:08]} 41. Kh3 {[%clk 0:01:10]}  Kh6 {[%clk 0:00:07]} 42. Kxh4 {[%clk 0:01:09]}  f5 {[%clk 0:00:08]} 43. Kg3 {[%clk 0:00:59]}  Bc7 {[%clk 0:00:07]} 44. f4 {[%clk 0:00:47]}  Kxh5 {[%clk 0:00:06]} 45. Kf3 {[%clk 0:00:43]}  Kg6 {[%clk 0:00:06]} 46. Ke3 {[%clk 0:00:28]}  Bb6+ {[%clk 0:00:05]} 47. Ke2 {[%clk 0:00:29]}  Kf6 {[%clk 0:00:05]} 48. Rd3 {[%clk 0:00:26]}  Bc5 {[%clk 0:00:05]} 49. Kd2 {[%clk 0:00:26]}  Bb6 {[%clk 0:00:05]} 50. Kc3 {[%clk 0:00:27]}  Ke7 {[%clk 0:00:05]} 51. Kc4 {[%clk 0:00:27]}  Rh6 {[%clk 0:00:05]} 52. Rg3 {[%clk 0:00:24]}  Rh4 {[%clk 0:00:05]} 53. Rg7+ {[%clk 0:00:25]}  Kd8 {[%clk 0:00:05]} 54. Be6 {[%clk 0:00:20]}  Rxf4+ {[%clk 0:00:05]} 55. Kd5 {[%clk 0:00:21]}  Be3 {[%clk 0:00:05]} 56. Rf7 {[%clk 0:00:15]}  Rb4 {[%clk 0:00:05]} 57. Kc6 {[%clk 0:00:14]}  f4 {[%clk 0:00:06]} 58. Bg4 {[%clk 0:00:09]}  Ke8 {[%clk 0:00:06]} 59. Bh5 {[%clk 0:00:08]}  Kd8 {[%clk 0:00:06]} 60. Kd6 {[%clk 0:00:07]}  Rd4+ {[%clk 0:00:05]} 61. Ke6 {[%clk 0:00:06]}  Rb4 {[%clk 0:00:05]} 62. Be2 {[%clk 0:00:03]}  Kc8 {[%clk 0:00:05]} 63. Kd6 {[%clk 0:00:03]}  Kb8 {[%clk 0:00:05]} 64. Kc6 {[%clk 0:00:01]}  Rb2 {[%clk 0:00:06]} 65. Bf3 {[%clk 0:00:01]}  Rc2+ {[%clk 0:00:05]} 66. Kd6 {[%clk 0:00:01]}  Kc8 {[%clk 0:00:05]} 67. Rf8# {[%clk 0:00:01]} 1-0


[Site "https://www.chess.com"]

[Event "Titled Tuesday Blitz June 21 Late 2022"]
[White "Nilsson, Joakim"]
[Black "Omariev, Maksim"]
[WhiteFideId "1723383"]
[BlackFideId "4193423"]
[WhiteElo "2210"]
[BlackElo "2479"]
[Result "1/2-1/2"]
[Round "07"]
[TimeControl "180+1"]
[Date "2022.06.22"]
[WhiteClock "0:01:27"]
[BlackClock "0:00:04"]

1. d4 {[%clk 0:03:00]}  h5 {[%clk 0:03:00]} 2. c4 {[%clk 0:02:59]}  h4 {[%clk 0:03:01]} 3. h3 {[%clk 0:02:55]}  c6 {[%clk 0:03:02]} 4. Nc3 {[%clk 0:02:55]}  d5 {[%clk 0:03:02]} 5. Nf3 {[%clk 0:02:54]}  e6 {[%clk 0:02:58]} 6. Bf4 {[%clk 0:02:48]}  Be7 {[%clk 0:02:54]} 7. e3 {[%clk 0:02:46]}  Nd7 {[%clk 0:02:51]} 8. Qc2 {[%clk 0:02:46]}  Ngf6 {[%clk 0:02:47]} 9. cxd5 {[%clk 0:02:42]}  Nxd5 {[%clk 0:02:41]} 10. Nxd5 {[%clk 0:02:40]}  exd5 {[%clk 0:02:42]} 11. O-O-O {[%clk 0:02:39]}  Nf6 {[%clk 0:02:12]} 12. Ne5 {[%clk 0:02:35]}  Be6 {[%clk 0:01:59]} 13. Kb1 {[%clk 0:02:25]}  a5 {[%clk 0:01:55]} 14. Bd3 {[%clk 0:02:23]}  a4 {[%clk 0:01:55]} 15. f3 {[%clk 0:02:23]}  a3 {[%clk 0:01:47]} 16. b3 {[%clk 0:02:23]}  Qb6 {[%clk 0:01:20]} 17. Bf5 {[%clk 0:02:22]}  Bxf5 {[%clk 0:01:13]} 18. Qxf5 {[%clk 0:02:18]}  Qa5 {[%clk 0:01:10]} 19. Rc1 {[%clk 0:02:15]}  Rh5 {[%clk 0:00:57]} 20. Qd3 {[%clk 0:02:11]}  Kf8 {[%clk 0:00:48]} 21. Rc2 {[%clk 0:02:11]}  Re8 {[%clk 0:00:38]} 22. Rhc1 {[%clk 0:02:09]}  Bb4 {[%clk 0:00:37]} 23. e4 {[%clk 0:02:03]}  Kg8 {[%clk 0:00:30]} 24. Ng4 {[%clk 0:01:58]}  Nd7 {[%clk 0:00:19]} 25. e5 {[%clk 0:01:56]}  Nf8 {[%clk 0:00:18]} 26. Be3 {[%clk 0:01:54]}  Ne6 {[%clk 0:00:06]} 27. f4 {[%clk 0:01:54]}  Nc7 {[%clk 0:00:07]} 28. f5 {[%clk 0:01:53]}  Nb5 {[%clk 0:00:07]} 29. e6 {[%clk 0:01:49]}  fxe6 {[%clk 0:00:06]} 30. f6 {[%clk 0:01:50]}  Rf5 {[%clk 0:00:05]} 31. fxg7 {[%clk 0:01:46]}  Kxg7 {[%clk 0:00:05]} 32. Nh6 {[%clk 0:01:33]}  Rf6 {[%clk 0:00:04]} 33. Ng4 {[%clk 0:01:32]}  Rf5 {[%clk 0:00:04]} 34. Bh6+ {[%clk 0:01:31]}  Kg6 {[%clk 0:00:04]} 35. Be3 {[%clk 0:01:27]}  Kg7 {[%clk 0:00:04]} 1/2-1/2


[Site "https://www.chess.com"]

[Event "Titled Tuesday Blitz June 21 Late 2022"]
[White "Novikova, Galina"]
[Black "Toncheva, Nadya"]
[WhiteFideId "4157095"]
[BlackFideId "2924056"]
[WhiteElo "1863"]
[BlackElo "1888"]
[Result "1-0"]
[Round "07"]
[TimeControl "180+1"]
[Date "2022.06.22"]
[WhiteClock "0:00:08"]
[BlackClock "0:00:04"]

1. e4 {[%clk 0:03:00]}  c5 {[%clk 0:02:58]} 2. Nf3 {[%clk 0:03:01]}  d6 {[%clk 0:02:58]} 3. d4 {[%clk 0:03:00]}  cxd4 {[%clk 0:02:59]} 4. Nxd4 {[%clk 0:03:01]}  Nf6 {[%clk 0:02:59]} 5. Nc3 {[%clk 0:03:02]}  Nc6 {[%clk 0:02:59]} 6. Be2 {[%clk 0:03:00]}  e5 {[%clk 0:02:59]} 7. Nb3 {[%clk 0:02:59]}  Be6 {[%clk 0:02:59]} 8. Bg5 {[%clk 0:02:56]}  Be7 {[%clk 0:02:59]} 9. Bxf6 {[%clk 0:02:55]}  Bxf6 {[%clk 0:02:58]} 10. O-O {[%clk 0:02:56]}  O-O {[%clk 0:02:57]} 11. Bg4 {[%clk 0:02:55]}  Qd7 {[%clk 0:02:55]} 12. Bxe6 {[%clk 0:02:51]}  Qxe6 {[%clk 0:02:56]} 13. Nd5 {[%clk 0:02:45]}  Rac8 {[%clk 0:02:56]} 14. c3 {[%clk 0:02:45]}  Ne7 {[%clk 0:02:55]} 15. Nxe7+ {[%clk 0:02:36]}  Bxe7 {[%clk 0:02:54]} 16. Qd3 {[%clk 0:02:33]}  f5 {[%clk 0:02:52]} 17. Rad1 {[%clk 0:02:29]}  Kh8 {[%clk 0:02:44]} 18. Rd2 {[%clk 0:02:18]}  b6 {[%clk 0:02:36]} 19. Rfd1 {[%clk 0:02:14]}  fxe4 {[%clk 0:02:32]} 20. Qxe4 {[%clk 0:02:14]}  Rc4 {[%clk 0:02:33]} 21. Qe2 {[%clk 0:02:06]}  Rg4 {[%clk 0:02:27]} 22. g3 {[%clk 0:01:48]}  h5 {[%clk 0:02:12]} 23. Nd4 {[%clk 0:01:03]}  Qg6 {[%clk 0:02:09]} 24. Nc6 {[%clk 0:00:52]}  Bg5 {[%clk 0:01:52]} 25. Rxd6 {[%clk 0:00:53]}  Qf5 {[%clk 0:01:52]} 26. Nxe5 {[%clk 0:00:42]}  Re8 {[%clk 0:00:57]} 27. Re1 {[%clk 0:00:11]}  Kh7 {[%clk 0:00:37]} 28. h3 {[%clk 0:00:10]}  Bf6 {[%clk 0:00:20]} 29. hxg4 {[%clk 0:00:10]}  hxg4 {[%clk 0:00:21]} 30. Qxg4 {[%clk 0:00:10]}  Qxg4 {[%clk 0:00:20]} 31. Nxg4 {[%clk 0:00:10]}  Rxe1+ {[%clk 0:00:21]} 32. Kg2 {[%clk 0:00:10]}  Be7 {[%clk 0:00:21]} 33. Rd7 {[%clk 0:00:10]}  a5 {[%clk 0:00:20]} 34. Ne3 {[%clk 0:00:10]}  Bc5 {[%clk 0:00:21]} 35. Nf5 {[%clk 0:00:08]}  Re2 {[%clk 0:00:21]} 36. Rxg7+ {[%clk 0:00:08]}  Kh8 {[%clk 0:00:22]} 37. Rf7 {[%clk 0:00:06]}  Rxf2+ {[%clk 0:00:22]} 38. Kh3 {[%clk 0:00:07]}  Rxb2 {[%clk 0:00:23]} 39. g4 {[%clk 0:00:07]}  Rc2 {[%clk 0:00:23]} 40. g5 {[%clk 0:00:07]}  Rxc3+ {[%clk 0:00:22]} 41. Kg4 {[%clk 0:00:08]}  Kg8 {[%clk 0:00:22]} 42. Rb7 {[%clk 0:00:07]}  Ra3 {[%clk 0:00:21]} 43. Kh5 {[%clk 0:00:07]}  Kf8 {[%clk 0:00:20]} 44. g6 {[%clk 0:00:05]}  Kg8 {[%clk 0:00:03]} 45. Rb8+ {[%clk 0:00:01]}  Bf8 {[%clk 0:00:04]} 46. g7 {[%clk 0:00:02]}  Rh3+ {[%clk 0:00:02]} 47. Kg6 {[%clk 0:00:03]}  Rg3+ {[%clk 0:00:01]} 48. Kf6 {[%clk 0:00:04]}  Rxg7 {[%clk 0:00:01]} 49. Nxg7 {[%clk 0:00:04]}  b5 {[%clk 0:00:01]} 50. Ne6 {[%clk 0:00:05]}  b4 {[%clk 0:00:01]} 51. Rxf8+ {[%clk 0:00:06]}  Kh7 {[%clk 0:00:02]} 52. Rb8 {[%clk 0:00:07]}  a4 {[%clk 0:00:02]} 53. Rxb4 {[%clk 0:00:07]}  Kh6 {[%clk 0:00:03]} 54. Rxa4 {[%clk 0:00:08]}  Kh5 {[%clk 0:00:03]} 55. Rf4 {[%clk 0:00:09]}  Kh6 {[%clk 0:00:04]} 56. Rh4# {[%clk 0:00:08]} 1-0


[Site "https://www.chess.com"]